[Event "VII GM Barcelona CC 2022"]
[Site "Barcelona"]
[Date "2022.05.11"]
[Round "3.2"]
[White "Gines Esteo, Pedro Antonio"]
[Black "Munoz, Miguel"]
[Result "1-0"]
[ECO "B31"]
[WhiteElo "2434"]
[BlackElo "2421"]
[Annotator "TA"]
[PlyCount "65"]
[EventDate "2022.05.10"]
[EventType "tourn"]
[EventCountry "ESP"]
[SourceTitle "playchess.com"]
[Source "ChessBase"]
[SourceQuality "1"]
[TimeControl "5400+30"]

{[%evp 20,65,37,31,25,36,39,43,41,37,47,45,40,40,39,41,44,55,131,123,129,131,185,186,218,180,358,0,381,356,369,257,631,616,625,605,681,639,704,731,709,708,725,730,731,724,692,596]} 1. e4 {[%emt 0:00:04]} c5 {[%emt 0:06:48]} 2. Nf3 {[%emt 0:02:00]} Nc6 {[%emt 0:02:03]} 3. Bb5 {[%emt 0:01:35]} g6 {[%emt 0:00:28]} 4. Bxc6 {[%emt 0:02:07]} dxc6 {[%emt 0:00:16]} 5. d3 {[%emt 0:00:40]} Bg7 {[%emt 0:00:09]} 6. Nc3 {[%emt 0:00:13]} Nf6 {[%emt 0:00:13]} 7. h3 {[%emt 0:00:16]} Nd7 {[%emt 0:01:30][%cal Bf6d7,Bd7f8,Bf8e6,Be6d4][%mdl 32]} 8. Be3 {[%emt 0:00:16]} e5 {[%emt 0:00:07]} 9. Qd2 {[%emt 0:00:14]} Qe7 {[%emt 0:00:33]} 10. Bh6 {[%emt 0:00:13]} Bxh6 {[%emt 0:00:17] has lost popularity (10...f6).} 11. Qxh6 {[%emt 0:00:02]} f6 {[%emt 0:00:10] B31: Sicilian: 2...Nc6 3 Bb5 g6.} 12. Nd2 {[%emt 0:00:13]} Nf8 {[%emt 0:00:13]} 13. f4 {[%emt 0:00:29]} exf4 {[%emt 0:00:09] White is slightly better.} 14. Qxf4 {[%emt 0:00:03]} Ne6 {[%emt 0:00:12]} 15. Qh4 {[%emt 0:00:05]} Nd4 {[%emt 0:00:24]} 16. O-O-O {[%emt 0:00:06]} Be6 {[%emt 0:00:54]} 17. Rhf1 {[%emt 0:01:50]} Rf8 {[%emt 0:00:30]} 18. Rde1 {[%emt 0:00:59] [#]} Qg7 $146 {[%emt 0:01:39] [#] White stays focused until the end.} ({Better is} 18... O-O-O $14) ({Predecessor:} 18... O-O-O 19. e5 g5 20. exf6 Rxf6 21. Qe4 Rxf1 22. Rxf1 Qg7 23. Qe3 b6 {½-½ (52) Pospisil,L (2488)-Jaulneau,C (2516) ICCF email 2017}) 19. Nd5 $1 $16 {[%emt 0:10:23][%cal Rd5f6][%mdl 512]} g5 {[%emt 0:05:14]} 20. Qf2 {[%emt 0:00:29][%cal Rd5f6] White is more active.} (20. Qh5+ Kd7 21. Ne3 Rad8 $14) 20... O-O-O {[%emt 0:00:26]} (20... f5 $16 {is a better defense.}) 21. Nxf6 $18 {[%emt 0:01:43]} Bxa2 {[%emt 0:01:05]} 22. b3 {[%emt 0:07:18] And now Kb2 would win.} Qe7 $2 {[%emt 0:05:35] [#]} (22... c4) 23. Kb2 $2 {[%emt 0:14:02]} (23. e5 $1 $18) 23... b5 $2 {[%emt 0:02:40][%mdl 8192]} 24. e5 {[%emt 0:02:40]} (24. Kxa2 Nxc2 25. e5 (25. Qf5+ Kb7 $17) 25... c4 26. dxc4 Qa3+ 27. Kb1 Nb4 $14) 24... a5 {[%emt 0:01:39]} 25. Nf3 {[%emt 0:08:14] The board is on fire. Pair of Knights!} (25. Kxa2 Nxc2 26. Nde4 Nxe1 27. Qxe1 Rd4 $18) 25... a4 $2 {[%emt 0:05:40]} (25... Bxb3 26. Nxd4 (26. cxb3 Nxb3 27. Qe3 a4 $16) 26... Rxd4) 26. Nxd4 {[%emt 0:08:03] White is clearly winning.} cxd4 {[%emt 0:01:14]} 27. Kxa2 {[%emt 0:04:57]} Qb4 {[%emt 0:01:57]} 28. Rb1 {[%emt 0:01:39]} Rf7 {[%emt 0:01:14]} 29. bxa4 {[%emt 0:04:12]} Qxa4+ {[%emt 0:00:26]} 30. Kb2 {[%emt 0:00:04][%cal Ba2b2,Bb2c1,Bc1d1][%mdl 32] Black must now prevent Qd2.} Ra7 {[%emt 0:00:18]} 31. Kc1 {[%emt 0:00:17]} Qa3+ {[%emt 0:00:31]} 32. Kd1 {[%emt 0:00:25]} Qa2 {[%emt 0:00:32]} 33. Rc1 {[%emt 0:00:40] Weighted Error Value: White=0.29 (precise) /Black=0.84} 1-0

[Event "VII GM Barcelona CC 2022"]
[Site "Barcelona"]
[Date "2022.05.11"]
[Round "3.3"]
[White "Alvarez Albiol, Victor"]
[Black "Del Prado Rodriguez, Xulio"]
[Result "1/2-1/2"]
[ECO "C47"]
[WhiteElo "2328"]
[BlackElo "2326"]
[Annotator "TA"]
[PlyCount "37"]
[EventDate "2022.05.10"]
[EventType "tourn"]
[EventCountry "ESP"]
[SourceTitle "playchess.com"]
[Source "ChessBase"]
[SourceQuality "1"]
[TimeControl "5400+30"]

{[%evp 16,37,0,0,0,0,4,8,13,16,27,5,4,0,11,11,11,6,12,9,7,12,12,23]} 1. e4 {[%emt 0:00:02]} e5 {[%emt 0:00:29]} 2. Nf3 {[%emt 0:00:05]} Nc6 {[%emt 0:00:11]} 3. Nc3 {[%emt 0:01:07]} Nf6 {[%emt 0:00:26]} 4. d4 {[%emt 0:00:16]} exd4 {[%emt 0:00:38]} 5. Nxd4 {[%emt 0:00:08]} Bb4 {[%emt 0:00:32]} 6. Nxc6 {[%emt 0:00:18]} bxc6 {[%emt 0:00:13]} 7. Bd3 {[%emt 0:00:28]} d5 {[%emt 0:01:00]} 8. Bd2 {[%emt 0:03:23]} O-O {[%emt 0:06:07]} 9. O-O {[%emt 0:01:36]} Bxc3 {[%emt 0:17:37] C47: Scotch Four Knights and Four Knights with 4 g3.} 10. Bxc3 {[%emt 0:00:08]} dxe4 $1 {[%emt 0:00:39][%mdl 4] is now more promising than 10...Nxe4.} 11. Bxf6 {[%emt 0:01:05][%mdl 64] [#] Remove Defender} Qxf6 {[%emt 0:00:35]} 12. Bxe4 {[%emt 0:00:07]} Ba6 {[%emt 0:01:15]} 13. Re1 {[%emt 0:01:16]} (13. c4 $5) 13... Qxb2 {[%emt 0:03:10] [#] The position is equal.} 14. Rb1 $146 {[%emt 0:03:30]} ({Predecessor:} 14. Qd7 Rae8 15. Bxc6 Rxe1+ 16. Rxe1 Qxc2 17. Bd5 h6 18. h3 Bc4 19. Bxc4 Qxc4 20. Qd2 c5 21. Re7 Qb5 22. Rxa7 Qb1+ {0-1 (22) Khripachenko,A (2210)-Nesterov,A (2483) Tuapse 2021}) 14... Qf6 {[%emt 0:08:53]} 15. Qd7 {[%emt 0:04:13][%csl LRc6,LRc7]} Bc4 {[%emt 0:09:13]} 16. a3 {[%emt 0:05:40]} ({Avoid the trap} 16. Bxc6 $2 Rad8 17. Qxc7 Rc8 18. Qxa7 Qxc6 $19) 16... Bd5 {[%emt 0:08:39]} 17. Bxd5 {[%emt 0:02:34]} cxd5 {[%emt 0:00:08]} 18. Qxd5 {[%emt 0:00:09]} g6 {[%emt 0:05:32]} 19. Qc5 {[%emt 0:03:22] A balanced but interesting game.  Weighted Error Value: White=0.05 (flawless) /Black=0.03 (flawless)} 1/2-1/2

[Event "VII GM Barcelona CC 2022"]
[Site "Barcelona"]
[Date "2022.05.11"]
[Round "3.4"]
[White "Gonzalez Perez, Arian"]
[Black "Roshka, Yevgeniy"]
[Result "1/2-1/2"]
[ECO "C07"]
[WhiteElo "2415"]
[BlackElo "2468"]
[Annotator "TA"]
[PlyCount "38"]
[EventDate "2022.05.10"]
[EventType "tourn"]
[EventCountry "ESP"]
[SourceTitle "playchess.com"]
[Source "ChessBase"]
[SourceQuality "1"]
[TimeControl "5400+30"]

{[%evp 10,21,22,14,19,14,17,12,18,22,30,32,18,39]} 1. e4 {[%emt 0:05:16]} e6 {[%emt 0:00:07]} 2. d4 {[%emt 0:00:05]} d5 {[%emt 0:00:04]} 3. Nd2 {[%emt 0:00:19]} c5 {[%emt 0:02:00]} 4. exd5 {[%emt 0:00:29]} Qxd5 {[%emt 0:00:02]} 5. Ngf3 {[%emt 0:00:24]} cxd4 {[%emt 0:00:03]} 6. Bc4 {[%emt 0:00:13]} Qd7 {[%emt 0:00:05] C07: French Tarrasch: 3...c5, 4 Ngf3 and 4 exd5 Qxd5.} 7. O-O {[%emt 0:01:07]} Nc6 {[%emt 0:00:21]} 8. Nb3 {[%emt 0:00:15]} a6 {[%emt 0:00:14]} 9. Nbxd4 {[%emt 0:09:01]} Nxd4 {[%emt 0:00:05]} 10. Qxd4 {[%emt 0:00:14]} Qxd4 {[%emt 0:00:11]} 11. Nxd4 {[%emt 1:18:37] [#] A rather calm draw.  Weighted Error Value: White=0.01 (flawless) /Black=0.00 (flawless)} {Predecessor:} Nf6 $146 12. Be2 e5 13. Nb3 Be6 14. Rd1 Rc8 15. c3 Be7 16. Bf3 e4 17. Be2 O-O 18. Nd4 Bg4 19. Bxg4 Nxg4 {1-0 (51) Salem,A (2660)-Goganov,A (2612) St Petersburg 2018} 1/2-1/2

[Event "VII GM Barcelona CC 2022"]
[Site "Barcelona"]
[Date "2022.05.11"]
[Round "3.5"]
[White "Movsziszian, Karen"]
[Black "Sosa, Tomas"]
[Result "1-0"]
[ECO "A00"]
[WhiteElo "2467"]
[BlackElo "2552"]
[Annotator "TA"]
[PlyCount "161"]
[EventDate "2022.05.10"]
[EventType "tourn"]
[EventCountry "ESP"]
[SourceTitle "playchess.com"]
[Source "ChessBase"]
[SourceQuality "1"]
[TimeControl "5400+30"]

{[%evp 18,161,-6,0,0,-15,0,4,4,9,3,25,21,7,107,86,97,79,90,82,84,66,114,117,125,133,141,122,131,110,115,120,122,124,135,125,185,185,186,184,201,179,194,206,201,151,207,213,205,203,210,198,196,187,206,233,238,231,293,180,252,127,149,152,168,110,125,105,284,279,281,249,241,243,282,262,431,383,509,350,345,339,338,309,287,210,301,264,362,366,362,314,406,329,416,437,558,512,750,749,698,731,715,713,668,270,772,741,827,827,1169,870,5904,6120,2263,588,29985,29977,29975,29978,29978,29979,29980,29981,29981,29982,29981,29981,29981,29978,29978,29978,29987,29988,29989,29989,29989,29989,29990,29986,29991,29989,29991,29991,29992,29991]} 1. g3 {[%emt 0:00:03]} e5 {[%emt 0:06:06]} 2. Bg2 {[%emt 0:00:04]} d5 {[%emt 0:00:07]} 3. d3 {[%emt 0:00:01]} Nc6 {[%emt 0:00:08]} 4. a3 {[%emt 0:00:12]} Be6 {[%emt 0:00:13]} 5. b4 {[%emt 0:00:06]} Qd7 {[%emt 0:00:05]} 6. Bb2 {[%emt 0:00:22]} f6 {[%emt 0:00:22]} 7. Nd2 {[%emt 0:00:26]} h5 {[%emt 0:00:29]} 8. h4 {[%emt 0:04:05]} Nh6 {[%emt 0:00:26]} 9. Ngf3 {[%emt 0:00:23]} a5 {[%emt 0:06:08]} 10. c3 {[%emt 0:04:00]} Rd8 {[%emt 0:01:39]} 11. Qa4 {[%emt 0:04:09]} axb4 {[%emt 0:00:28]} 12. axb4 {[%emt 0:02:21]} Bd6 {[%emt 0:01:03]} 13. e4 {[%emt 0:01:58]} dxe4 {[%emt 0:04:12]} 14. Nxe4 {[%emt 0:06:49]} Be7 {[%emt 0:08:59]} 15. Rd1 {[%emt 0:02:47]} b5 {[%emt 0:04:26]} (15... O-O $11 {keeps the balance.}) 16. Qxb5 $16 {[%emt 0:03:45]} O-O {[%emt 0:05:38]} 17. O-O {[%emt 0:05:24]} Bb3 {[%emt 0:02:43]} 18. Ra1 {[%emt 0:06:54]} Rb8 {[%emt 0:08:10]} 19. Qa6 {[%emt 0:03:30]} Rb6 {[%emt 0:00:31]} (19... Ng4 $14 {might be stronger.}) 20. Qa3 $16 {[%emt 0:00:33]} Be6 {[%emt 0:00:12]} 21. Rfd1 {[%emt 0:01:28]} Nb8 {[%emt 0:01:53]} 22. Qa7 {[%emt 0:07:36]} Bd5 {[%emt 0:06:17]} 23. Rd2 {[%emt 0:01:59]} Ng4 {[%emt 0:01:35]} 24. Qa4 {[%emt 0:02:01]} Qe6 {[%emt 0:08:41]} 25. Qd1 {[%emt 0:02:57]} Nd7 {[%emt 0:00:56]} 26. Ra5 {[%emt 0:04:05]} Bb7 {[%emt 0:03:25]} (26... c6 $16 {was worth a try.} 27. Re2 Rbb8) 27. Re2 $18 {[%emt 0:05:03]} Qf7 {[%emt 0:07:31]} 28. Bc1 {[%emt 0:04:16]} Qg6 {[%emt 0:00:52]} 29. Qa4 {[%emt 0:03:01]} Bc6 {[%emt 0:02:22]} 30. Qa2+ {[%emt 0:01:39]} Kh8 {[%emt 0:00:18]} 31. Ra7 {[%emt 0:01:36]} Bd8 {[%emt 0:03:52]} (31... f5 $16 {keeps fighting.}) 32. Be3 $18 {[%emt 0:01:26]} Nxe3 {[%emt 0:00:28]} 33. Rxe3 {[%emt 0:00:07]} Re8 {[%emt 0:04:26]} 34. Re2 {[%emt 0:03:14]} Rb8 {[%emt 0:03:05]} 35. Kh2 {[%emt 0:01:20]} Nb6 {[%emt 0:00:42]} 36. c4 {[%emt 0:03:06]} Nc8 {[%emt 0:00:39]} 37. Ra6 {[%emt 0:00:04]} Bb7 {[%emt 0:00:37]} 38. Ra4 {[%emt 0:02:14]} Be7 {[%emt 0:00:44]} (38... Nb6 $142) 39. b5 {[%emt 0:09:54]} (39. c5 $18) 39... Bxe4 {[%emt 0:01:56]} 40. Rxe4 {[%emt 0:00:43]} (40. dxe4 $6 Nb6 $16) 40... Nd6 {[%emt 0:00:19] [#]} 41. Re3 {[%emt 0:00:22]} (41. Ra6 $1 $18) 41... Nf5 $16 {[%emt 0:00:04] [#]} 42. Re2 $1 {[%emt 0:00:23]} Rbd8 $2 {[%emt 0:01:57] [#]} (42... Bc5 $16 {might work better.}) 43. Ra6 $1 $18 {[%emt 0:00:38]} Qh7 {[%emt 0:02:18]} 44. Qc2 {[%emt 0:00:36]} Nh6 {[%emt 0:00:47]} 45. Ne1 {[%emt 0:01:29]} Ng4+ {[%emt 0:00:57]} 46. Kg1 {[%emt 0:00:01]} g5 $2 {[%emt 0:03:53]} (46... Bc5 {was necessary.} 47. Rc6 Bd4) 47. hxg5 $18 {[%emt 0:01:56]} h4 {[%emt 0:00:06]} 48. gxh4 {[%emt 0:01:15]} Qxh4 {[%emt 0:00:43]} 49. Nf3 {[%emt 0:00:04]} Qh5 {[%emt 0:00:27]} 50. Rc6 {[%emt 0:01:19]} Ra8 {[%emt 0:00:33]} 51. Re1 {[%emt 0:00:41]} (51. Rxc7 Ra1+ 52. Re1 e4 53. Rxe7 (53. Rxa1 $2 exf3 54. Bxf3 Qh2+ 55. Kf1 Ne3+ 56. fxe3 Qxc2 $19) 53... Rxe1+ 54. Nxe1 Rxe7 55. gxf6 (55. Bxe4 Qh2+ 56. Kf1 Qh3+ 57. Kg1 Qh2+ 58. Kf1 Qh3+ 59. Ke2 f5 $11) 55... e3 56. fxe7 exf2+ 57. Kf1 Ne3+ 58. Kxf2 Nxc2 59. Nxc2 Qh4+ 60. Ke2 Qxe7+ 61. Be4 Qe5 $14) 51... fxg5 {[%emt 0:00:56]} (51... e4 {was called for.} 52. dxe4 Ra3) 52. Re6 {[%emt 0:01:15]} (52. Rxc7 Bb4 53. Rb1 Rf8 $18) 52... Bc5 {[%emt 0:00:13]} 53. Rxe8+ {[%emt 0:00:33]} Rxe8 {[%emt 0:00:01]} 54. d4 $1 {[%emt 0:00:19]} Bb4 {[%emt 0:01:06]} 55. Re2 {[%emt 0:00:38]} Ra8 {[%emt 0:00:37]} 56. Qb2 {[%emt 0:00:40]} Be7 {[%emt 0:00:37]} 57. c5 {[%emt 0:00:14]} Rf8 {[%emt 0:00:17]} 58. b6 {[%emt 0:00:52]} cxb6 {[%emt 0:01:15]} 59. cxb6 {[%emt 0:00:03]} e4 {[%emt 0:00:00]} 60. Rxe4 {[%emt 0:00:21]} Bd6 {[%emt 0:00:00]} 61. Qe2 {[%emt 0:01:07]} (61. b7 $142) 61... Nf6 $2 {[%emt 0:00:55]} (61... Bh2+ 62. Kf1 Nxf2 63. Qxf2 Qg6) 62. Re6 $18 {[%emt 0:00:13]} Bf4 {[%emt 0:00:30]} 63. b7 {[%emt 0:00:10]} g4 {[%emt 0:00:22]} 64. Ne5 {[%emt 0:00:25]} Qh2+ {[%emt 0:00:36]} 65. Kf1 {[%emt 0:00:02]} Qh7 {[%emt 0:00:05]} 66. Qd3 {[%emt 0:01:00]} ({Less strong is} 66. Rxf6 Qb1+ 67. Qe1 Qb5+ 68. Kg1 (68. Qe2 Qb1+ 69. Qe1 Qb5+ 70. Kg1 Rxf6 $16) 68... Rxf6 $18) (66. Qb2 $142 {[%cal Oe6f6] Rxf6! would kill now.} Bxe5 67. dxe5) 66... Qc7 {[%emt 0:00:23]} 67. Rc6 {[%emt 0:00:41]} Bxe5 {[%emt 0:01:00]} 68. Rxc7 {[%emt 0:00:07]} Bxc7 {[%emt 0:00:07]} 69. Qg6 {[%emt 0:00:17]} Bb8 {[%emt 0:00:59]} 70. Ke2 {[%emt 0:00:21]} Re8+ {[%emt 0:00:22]} 71. Kd3 {[%emt 0:00:04]} Rf8 {[%emt 0:00:03]} 72. Bc6 {[%emt 0:00:11]} Bf4 {[%emt 0:00:08]} 73. Bb5 {[%emt 0:00:26]} Bb8 {[%emt 0:00:33]} 74. Bc4 {[%emt 0:00:24]} Bc7 {[%emt 0:00:18]} 75. Be6 {[%emt 0:00:23]} Bb8 {[%emt 0:00:42]} 76. Kc4 {[%emt 0:01:01]} Bc7 {[%emt 0:00:08]} 77. Kb5 {[%emt 0:00:12]} Bb8 {[%emt 0:00:06]} 78. Kc6 {[%emt 0:00:26]} Bf4 {[%emt 0:00:27]} 79. d5 {[%emt 0:00:32]} Bb8 {[%emt 0:00:06]} 80. d6 {[%emt 0:00:21]} Nh7 {[%emt 0:00:13]} 81. Qxg4 {[%emt 0:00:22]} 1-0

[Event "VII GM Barcelona CC 2022"]
[Site "Barcelona"]
[Date "2022.05.12"]
[Round "4.1"]
[White "Pajeken, Jakob Leon"]
[Black "Sosa, Tomas"]
[Result "1-0"]
[ECO "D35"]
[WhiteElo "2398"]
[BlackElo "2552"]
[Annotator "TA"]
[PlyCount "57"]
[EventDate "2022.05.10"]
[EventType "tourn"]
[EventCountry "ESP"]
[SourceTitle "playchess.com"]
[Source "ChessBase"]
[SourceQuality "1"]
[TimeControl "5400+30"]

{[%evp 13,57,14,19,15,10,9,10,8,8,13,10,8,7,-4,0,-2,0,-6,0,-6,0,-9,8,-22,-6,-29,28,33,56,61,128,152,204,222,223,212,220,207,228,211,535,532,532,516,485,465]} 1. d4 {[%emt 0:00:02]} d5 {[%emt 0:03:03]} 2. c4 {[%emt 0:00:06]} e6 {[%emt 0:00:04]} 3. Nc3 {[%emt 0:00:08]} Nf6 {[%emt 0:01:41]} 4. cxd5 {[%emt 0:00:18]} exd5 {[%emt 0:00:17]} 5. Bg5 {[%emt 0:00:11]} Be7 {[%emt 0:02:24]} 6. e3 {[%emt 0:00:30]} O-O {[%emt 0:00:09]} 7. Bd3 {[%emt 0:00:31]} c6 {[%emt 0:00:36]} 8. h3 {[%emt 0:00:47] D35: Queen's Gambit Declined: Exchange Variation.} Re8 {[%emt 0:00:34]} 9. Nf3 {[%emt 0:05:40]} Ne4 {[%emt 0:08:17]} 10. Bf4 {[%emt 0:00:28] The position is equal.} (10. Nxe4 $2 dxe4 11. Bxe7 Qxe7 12. Bxe4 Qxe4 $19) 10... Bf5 {[%emt 0:01:47]} 11. Qc2 {[%emt 0:04:39]} Nd7 {[%emt 0:04:50]} 12. O-O {[%emt 0:03:47][%cal Rc3e4]} ({Much weaker is} 12. Nxe4 dxe4 13. Bc4 (13. Bxe4 $2 Bxe4 14. Qd2 Nf8 $19) 13... Nb6 $15) 12... Bf6 {[%emt 0:07:16]} 13. Nd2 {[%emt 0:09:20]} Nxd2 {[%emt 0:05:11]} 14. Qxd2 {[%emt 0:00:09] [#]} Bxd3 $146 {[%emt 0:00:10]} ({Predecessor:} 14... Bg6 15. Rfe1 Nf8 16. Rad1 Ne6 17. Bg3 Bxd3 18. Qxd3 g6 19. b4 a6 20. a4 Bg7 {0-1 (32) Kostelny,J (2205)-Kral,P (2084) Slovakia 2017}) 15. Qxd3 {[%emt 0:00:04]} Nb6 {[%emt 0:01:23]} 16. Rfe1 {[%emt 0:04:37]} Nc4 {[%emt 0:01:44]} 17. b3 {[%emt 0:01:04]} Nd6 {[%emt 0:00:07]} 18. f3 {[%emt 0:01:04][%cal Bf2f3,Bf3e4,Be4e5,Be5f6][%mdl 32]} g6 {[%emt 0:06:52]} 19. Rad1 {[%emt 0:02:43]} Bg7 {[%emt 0:03:40]} (19... Nf5 $142) 20. e4 $11 {[%emt 0:02:12]} dxe4 {[%emt 0:02:06]} 21. fxe4 {[%emt 0:00:10]} Qe7 {[%emt 0:01:01] [#]} (21... Nf5 $14) 22. e5 $1 $16 {[%emt 0:06:48] White is more active.} Nf5 {[%emt 0:01:55]} (22... Nc8 $16 {was necessary.} 23. Ne4 Rf8) 23. g4 $18 {[%emt 0:12:30]} Nh4 {[%emt 0:05:48]} 24. Ne4 {[%emt 0:01:24] Threatens to win with Bg5.} h6 {[%emt 0:02:59] Against Bg5} 25. Bg3 {[%emt 0:10:05] Black must now prevent Rf1.} Rad8 {[%emt 0:02:56][%cal Od8d4]} 26. Rf1 {[%emt 0:02:08] Hoping for Nf6+.} f5 $2 {[%emt 0:06:37]} (26... g5 {is tougher.} 27. Bxh4 (27. Nd6 Rf8 $16) 27... gxh4) 27. exf6 {[%emt 0:00:17] White is clearly winning.} Qxe4 {[%emt 0:00:15][%csl Gh4][%cal Re4g2] [#]} 28. Bxh4 {[%emt 0:00:05]} Qxd3 {[%emt 0:02:59]} 29. Rxd3 {[%emt 0:00:08] Weighted Error Value: White=0.04 (flawless) /Black=0.28 (precise)} 1-0

[Event "VII GM Barcelona CC 2022"]
[Site "Barcelona"]
[Date "2022.05.12"]
[Round "4.2"]
[White "Roshka, Yevgeniy"]
[Black "Movsziszian, Karen"]
[Result "1/2-1/2"]
[ECO "E70"]
[WhiteElo "2468"]
[BlackElo "2467"]
[Annotator "TA"]
[PlyCount "78"]
[EventDate "2022.05.10"]
[EventType "tourn"]
[EventCountry "ESP"]
[SourceTitle "playchess.com"]
[Source "ChessBase"]
[SourceQuality "1"]
[TimeControl "5400+30"]

{[%evp 9,78,21,27,17,23,4,19,27,30,27,35,39,32,39,32,37,30,33,23,37,24,37,38,3,44,29,72,70,67,23,52,52,52,52,52,52,52,24,23,-31,0,0,18,0,0,0,0,0,0,-29,0,0,0,0,0,0,0,0,0,0,0,0,0,0,0,0,0,0,0,0,0]} 1. d4 {[%emt 0:04:39]} d6 {[%emt 0:00:25]} 2. c4 {[%emt 0:00:11]} g6 {[%emt 0:01:22]} 3. Nc3 {[%emt 0:00:44]} Bg7 {[%emt 0:00:04]} 4. e4 {[%emt 0:02:27]} Nf6 {[%emt 0:00:03]} 5. h4 {[%emt 0:00:55]} c5 {[%emt 0:05:11]} 6. d5 {[%emt 0:00:11] E70: King's Indian: Miscellaneous lines with 4 e4, including 5 Nge2 and 5 Bd3 0-0 6 Nge2.} e6 {[%emt 0:04:43]} 7. Be2 {[%emt 0:00:15]} exd5 {[%emt 0:01:04]} 8. exd5 {[%emt 0:00:13]} h5 {[%emt 0:01:47]} 9. Nf3 {[%emt 0:04:37]} O-O {[%emt 0:02:25]} 10. O-O {[%emt 0:08:14] [#]} Bg4 $146 {[%emt 0:00:53]} ({Predecessor:} 10... Re8 11. Ng5 Nbd7 12. Bf4 Ne5 13. Qd2 Bf5 14. Rfe1 a6 {½-½ (14) Schekachikhin,M (2424)-Fedorov,A (2529) Cheliabinsk 2022}) 11. Ng5 {[%emt 0:06:25]} Bxe2 {[%emt 0:01:16]} 12. Qxe2 {[%emt 0:00:19]} Re8 {[%emt 0:01:39]} 13. Qc2 {[%emt 0:00:13]} Nbd7 {[%emt 0:00:10]} 14. Bf4 {[%emt 0:01:51]} Ne5 {[%emt 0:00:14]} 15. b3 {[%emt 0:02:49]} a6 {[%emt 0:05:26][%cal Ob7b5]} 16. a4 {[%emt 0:02:13] Against b5} Nh7 {[%emt 0:03:15]} 17. Rae1 {[%emt 0:21:15]} Qd7 {[%emt 0:06:38]} 18. Bg3 {[%emt 0:04:51]} Re7 {[%emt 0:09:13]} 19. Re3 {[%emt 0:03:49]} Rae8 {[%emt 0:01:59]} 20. Rfe1 $1 {[%emt 0:00:50]} Ng4 {[%emt 0:08:58]} 21. Rxe7 {[%emt 0:05:05]} Rxe7 {[%emt 0:00:02]} 22. Rxe7 {[%emt 0:00:29]} Qxe7 {[%emt 0:00:02][%cal Re7e1] [#]} 23. Qe4 {[%emt 0:00:21] Prevents Qe1+.} (23. Qe2 $5 {[%cal Re2e7]} Qd8 24. Nce4 (24. Nxf7 Qd7 $14) 24... Nxg5 25. hxg5 $14) 23... Qd7 {[%emt 0:07:18]} 24. Ne2 {[%emt 0:03:44]} ({White should try} 24. Qe1 $11) 24... Nhf6 {[%emt 0:06:01][%cal Bh7f6,Bf6d7,Bd7e5][%mdl 32]} 25. Qd3 {[%emt 0:01:41]} Qe7 {[%emt 0:01:00]} 26. f3 {[%emt 0:01:45]} Nh6 {[%emt 0:01:04]} 27. Bf4 {[%emt 0:01:22][%cal Bg3f4,Bf4d2,Bd2c3][%mdl 32]} Nf5 {[%emt 0:00:14]} 28. g3 {[%emt 0:00:15]} Nd7 {[%emt 0:05:06]} 29. Qe4 {[%emt 0:00:36] [#] Qxe7 is the strong threat.} Ne5 {[%emt 0:01:25]} 30. Bd2 {[%emt 0:05:07] The position is equal.} Qd7 {[%emt 0:02:13]} 31. a5 $1 {[%emt 0:00:18]} Qd8 {[%emt 0:00:33]} 32. Kg2 {[%emt 0:01:04]} Qd7 {[%emt 0:07:10]} 33. Bc3 {[%emt 0:02:13]} Bf6 {[%emt 0:02:51]} 34. Nf4 {[%emt 0:02:04]} Bg7 {[%emt 0:01:06][%cal Oe5c4]} 35. Kf2 {[%emt 0:04:14]} Bf6 {[%emt 0:00:16]} 36. Kg2 {[%emt 0:01:58]} Bg7 {[%emt 0:00:06][%cal Oe5c4] White must now prevent ...Nxc4!} 37. Kf2 {[%emt 0:02:50]} Bf6 {[%emt 0:00:46]} 38. Kg2 {[%emt 0:01:40]} Bg7 {[%emt 0:00:05][%cal Oe5c4] And now ...Nxc4! would win.} 39. Ne2 {[%emt 0:02:54]} Bf6 {[%emt 0:01:43] Weighted Error Value: White=0.08 (flawless) /Black=0.05 (flawless)} 1/2-1/2